[Event "*** SCC Grand Prix: Titled Tuesday Blitz"]
[Site "Chess.com"]
[Date "2020.07.07"]
[Round "9"]
[White "Na_binci"]
[Black "Grandmaster2B"]
[Result "0-1"]
[WhiteElo "1992"]
[BlackElo "2422"]
[TimeControl "180+1"]
[EndTime "11:47:26 PDT"]
[Termination "Grandmaster2B won on time"]

1. d4 {[%clk 0:03:00.9]} 1... Nf6 {[%clk 0:02:59.5]} 2. c4 {[%clk 0:03:00]} 2...
e6 {[%clk 0:02:59.3]} 3. Nf3 {[%clk 0:02:58.9]} 3... b6 {[%clk 0:02:55]} 4. a3
{[%clk 0:02:58.6]} 4... Bb7 {[%clk 0:02:51.6]} 5. Nc3 {[%clk 0:02:58.4]} 5... d5
{[%clk 0:02:51.8]} 6. cxd5 {[%clk 0:02:57.4]} 6... Nxd5 {[%clk 0:02:52.7]} 7.
Qc2 {[%clk 0:02:57.4]} 7... Be7 {[%clk 0:02:51.9]} 8. e4 {[%clk 0:02:56.9]} 8...
Nxc3 {[%clk 0:02:51.6]} 9. bxc3 {[%clk 0:02:57.3]} 9... O-O {[%clk 0:02:52]} 10.
Bd3 {[%clk 0:02:57.1]} 10... c5 {[%clk 0:02:51.6]} 11. O-O {[%clk 0:02:57.4]}
11... Qc8 {[%clk 0:02:51.8]} 12. Qe2 {[%clk 0:02:56.8]} 12... Ba6 {[%clk
0:02:51.3]} 13. Rd1 {[%clk 0:02:56.5]} 13... Rd8 {[%clk 0:02:49.2]} 14. e5
{[%clk 0:02:55.9]} 14... Bxd3 {[%clk 0:02:36.9]} 15. Rxd3 {[%clk 0:02:53.7]}
15... cxd4 {[%clk 0:02:36.7]} 16. cxd4 {[%clk 0:02:52.1]} 16... Qc4 {[%clk
0:02:35.9]} 17. Nd2 {[%clk 0:02:48.8]} 17... Qa6 {[%clk 0:02:32.3]} 18. Qe4
{[%clk 0:02:39.3]} 18... Nd7 {[%clk 0:02:12.8]} 19. Rh3 {[%clk 0:02:36.3]} 19...
Nf8 {[%clk 0:02:12.8]} 20. Nf3 {[%clk 0:01:57.2]} 20... Qa4 {[%clk 0:01:45.7]}
21. Be3 {[%clk 0:01:43.9]} 21... Rac8 {[%clk 0:01:32.8]} 22. Re1 {[%clk
0:01:05.2]} 22... Qc6 {[%clk 0:01:09.9]} 23. Qg4 {[%clk 0:00:57.6]} 23... Qc2
{[%clk 0:00:56.3]} 24. Rg3 {[%clk 0:00:49.6]} 24... Ng6 {[%clk 0:00:45.2]} 25.
h4 {[%clk 0:00:34.3]} 25... Qf5 {[%clk 0:00:31.8]} 26. h5 {[%clk 0:00:25.9]}
26... Qxg4 {[%clk 0:00:25.8]} 27. Rxg4 {[%clk 0:00:26.8]} 27... Nf8 {[%clk
0:00:25.4]} 28. Bh6 {[%clk 0:00:25.4]} 28... g6 {[%clk 0:00:24.5]} 29. hxg6
{[%clk 0:00:26.3]} 29... hxg6 {[%clk 0:00:21.4]} 30. Kh2 {[%clk 0:00:20.7]}
30... Rc3 {[%clk 0:00:18.5]} 31. Kg3 {[%clk 0:00:18.8]} 31... Rxa3 {[%clk
0:00:13]} 32. Rh1 {[%clk 0:00:18.2]} 32... Nh7 {[%clk 0:00:11.5]} 33. Be3 {[%clk
0:00:14.7]} 33... b5 {[%clk 0:00:09.3]} 34. Nd2 {[%clk 0:00:14.4]} 34... b4
{[%clk 0:00:05.5]} 35. Rb1 {[%clk 0:00:14]} 35... a5 {[%clk 0:00:05.3]} 36. Nc4
{[%clk 0:00:11]} 36... Ra2 {[%clk 0:00:05.8]} 37. Rb3 {[%clk 0:00:08]} 37... a4
{[%clk 0:00:05.7]} 38. Rb1 {[%clk 0:00:08.2]} 38... b3 {[%clk 0:00:05.9]} 39.
Nb6 {[%clk 0:00:08]} 39... Rb8 {[%clk 0:00:04.4]} 40. Nxa4 {[%clk 0:00:05.7]}
40... Rxa4 {[%clk 0:00:04]} 41. d5 {[%clk 0:00:05.2]} 41... Rxg4+ {[%clk
0:00:04.9]} 42. Kxg4 {[%clk 0:00:05.7]} 42... exd5 {[%clk 0:00:05.8]} 43. Bd4
{[%clk 0:00:05.5]} 43... Nf8 {[%clk 0:00:05.4]} 44. Kf3 {[%clk 0:00:04.5]} 44...
Ne6 {[%clk 0:00:05.7]} 45. Bb2 {[%clk 0:00:05.3]} 45... Bc5 {[%clk 0:00:05.3]}
46. Ke2 {[%clk 0:00:05.3]} 46... Nd4+ {[%clk 0:00:05.7]} 47. Kd3 {[%clk
0:00:05.2]} 47... Nc6 {[%clk 0:00:04.9]} 48. f4 {[%clk 0:00:05.6]} 48... Nb4+
{[%clk 0:00:04.8]} 49. Ke2 {[%clk 0:00:05.7]} 49... Na2 {[%clk 0:00:04.4]} 50.
g4 {[%clk 0:00:04.8]} 50... d4 {[%clk 0:00:04.8]} 51. f5 {[%clk 0:00:04.2]}
51... Nc3+ {[%clk 0:00:04.8]} 52. Bxc3 {[%clk 0:00:03.2]} 52... dxc3 {[%clk
0:00:05.7]} 53. Kd3 {[%clk 0:00:03.3]} 53... c2 {[%clk 0:00:06]} 54. Rh1 {[%clk
0:00:01.7]} 54... Ba3 {[%clk 0:00:05.9]} 55. fxg6 {[%clk 0:00:02.5]} 55... fxg6
{[%clk 0:00:05.4]} 0-1

[Event "*** SCC Grand Prix: Titled Tuesday Blitz"]
[Site "Chess.com"]
[Date "2020.07.07"]
[Round "9"]
[White "GMJustin"]
[Black "Future2700"]
[Result "1-0"]
[WhiteElo "2276"]
[BlackElo "2400"]
[TimeControl "180+1"]
[EndTime "11:47:27 PDT"]
[Termination "GMJustin won by resignation"]

1. d4 {[%clk 0:03:00.3]} 1... Nf6 {[%clk 0:02:57.4]} 2. c4 {[%clk 0:02:59.7]}
2... e6 {[%clk 0:02:48.8]} 3. Nc3 {[%clk 0:02:55.6]} 3... Bb4 {[%clk 0:02:35.9]}
4. e3 {[%clk 0:02:55.1]} 4... O-O {[%clk 0:02:30.5]} 5. Bd3 {[%clk 0:02:54.9]}
5... c5 {[%clk 0:02:29.8]} 6. d5 {[%clk 0:02:50.1]} 6... exd5 {[%clk 0:02:17.1]}
7. cxd5 {[%clk 0:02:50.1]} 7... d6 {[%clk 0:02:11.9]} 8. Ne2 {[%clk 0:02:46.1]}
8... a6 {[%clk 0:02:11]} 9. a4 {[%clk 0:02:38.7]} 9... Re8 {[%clk 0:02:07.9]}
10. O-O {[%clk 0:02:38.5]} 10... Bxc3 {[%clk 0:02:06.6]} 11. Nxc3 {[%clk
0:02:37.9]} 11... Nbd7 {[%clk 0:02:07.5]} 12. e4 {[%clk 0:02:37.5]} 12... Ne5
{[%clk 0:02:06.3]} 13. Be2 {[%clk 0:02:33.8]} 13... Ng6 {[%clk 0:02:02.4]} 14.
f3 {[%clk 0:02:26.6]} 14... Bd7 {[%clk 0:01:51.8]} 15. Be3 {[%clk 0:02:19.8]}
15... Rb8 {[%clk 0:01:50.2]} 16. a5 {[%clk 0:02:17.6]} 16... b5 {[%clk
0:01:49.6]} 17. axb6 {[%clk 0:02:17.1]} 17... Qxb6 {[%clk 0:01:45.1]} 18. Rxa6
{[%clk 0:01:58]} 18... Qxb2 {[%clk 0:01:44.1]} 19. Qc1 {[%clk 0:01:47.8]} 19...
Qb4 {[%clk 0:01:26.5]} 20. Rxd6 {[%clk 0:01:43]} 20... Ra8 {[%clk 0:01:18.1]}
21. Qd2 {[%clk 0:01:15.5]} 21... Ra3 {[%clk 0:01:04.5]} 22. Nb1 {[%clk
0:01:06.2]} 22... Qxd2 {[%clk 0:00:22.8]} 23. Bxd2 {[%clk 0:01:05.8]} 23... Ra2
{[%clk 0:00:20.4]} 24. Bc4 {[%clk 0:01:02.6]} 24... Rc2 {[%clk 0:00:18.5]} 25.
Bd3 {[%clk 0:00:59.2]} 25... Rb2 {[%clk 0:00:18.6]} 26. Bc3 {[%clk 0:00:58.3]}
26... Rb3 {[%clk 0:00:19]} 27. Bc4 {[%clk 0:00:56.8]} 27... Rb7 {[%clk
0:00:18.6]} 28. Bxf6 {[%clk 0:00:52.8]} 28... gxf6 {[%clk 0:00:19.5]} 29. Rxf6
{[%clk 0:00:47.7]} 29... Ne5 {[%clk 0:00:19.2]} 30. Be2 {[%clk 0:00:42.4]} 30...
Reb8 {[%clk 0:00:19.1]} 31. Nc3 {[%clk 0:00:41]} 31... Rb2 {[%clk 0:00:19.6]}
32. Rc1 {[%clk 0:00:36.4]} 32... R8b3 {[%clk 0:00:19]} 33. Bf1 {[%clk
0:00:34.7]} 33... Rd2 {[%clk 0:00:18.5]} 34. Rd1 {[%clk 0:00:22.8]} 34... Rc2
{[%clk 0:00:16.5]} 35. Ne2 {[%clk 0:00:19.3]} 35... Rbb2 {[%clk 0:00:16.8]} 36.
Nf4 {[%clk 0:00:18.5]} 36... Bb5 {[%clk 0:00:16.6]} 37. Bxb5 {[%clk 0:00:14.2]}
37... Rxb5 {[%clk 0:00:17.2]} 38. d6 {[%clk 0:00:10.4]} 38... Nd7 {[%clk
0:00:17]} 39. Rf5 {[%clk 0:00:09.7]} 39... Rbb2 {[%clk 0:00:17.5]} 40. h4 {[%clk
0:00:08.5]} 40... c4 {[%clk 0:00:17.3]} 41. Kh2 {[%clk 0:00:07.7]} 41... c3
{[%clk 0:00:17.6]} 42. Kh3 {[%clk 0:00:07.2]} 42... Rd2 {[%clk 0:00:18]} 43.
Rxd2 {[%clk 0:00:06.1]} 43... Rxd2 {[%clk 0:00:17.4]} 44. Ra5 {[%clk 0:00:03.2]}
44... c2 {[%clk 0:00:17.2]} 45. Ra8+ {[%clk 0:00:03.3]} 45... Kg7 {[%clk
0:00:17]} 46. Rc8 {[%clk 0:00:03.6]} 46... Ne5 {[%clk 0:00:09.3]} 47. Nd5 {[%clk
0:00:03.5]} 47... Nd3 {[%clk 0:00:06.9]} 48. d7 {[%clk 0:00:03]} 48... Nf4+
{[%clk 0:00:06.4]} 49. Nxf4 {[%clk 0:00:02.1]} 49... Rxd7 {[%clk 0:00:05.4]} 1-0

[Event "*** SCC Grand Prix: Titled Tuesday Blitz"]
[Site "Chess.com"]
[Date "2020.07.07"]
[Round "9"]
[White "Konek-Gorbunok"]
[Black "ammarzooqi"]
[Result "1-0"]
[WhiteElo "2272"]
[BlackElo "2172"]
[TimeControl "180+1"]
[EndTime "11:47:28 PDT"]
[Termination "Konek-Gorbunok won by checkmate"]

1. d4 {[%clk 0:03:00.9]} 1... Nf6 {[%clk 0:02:59.9]} 2. Nf3 {[%clk 0:03:01.5]}
2... g6 {[%clk 0:03:00.7]} 3. c4 {[%clk 0:03:00.8]} 3... d5 {[%clk 0:03:00.9]}
4. Nc3 {[%clk 0:03:01.7]} 4... Bg7 {[%clk 0:03:00.4]} 5. cxd5 {[%clk 0:03:00.8]}
5... Nxd5 {[%clk 0:03:00.5]} 6. Bd2 {[%clk 0:03:01.2]} 6... O-O {[%clk
0:02:59.9]} 7. e4 {[%clk 0:03:00.7]} 7... Nxc3 {[%clk 0:03:00]} 8. Bxc3 {[%clk
0:03:01.2]} 8... c5 {[%clk 0:03:00.1]} 9. d5 {[%clk 0:03:01.4]} 9... f6 {[%clk
0:02:49.7]} 10. Bc4 {[%clk 0:02:55.5]} 10... Kh8 {[%clk 0:02:46.4]} 11. O-O
{[%clk 0:02:55.4]} 11... a6 {[%clk 0:02:45.3]} 12. a4 {[%clk 0:02:54.2]} 12...
Bg4 {[%clk 0:02:40.9]} 13. h3 {[%clk 0:02:53.1]} 13... Bxf3 {[%clk 0:02:40.4]}
14. Qxf3 {[%clk 0:02:52.6]} 14... Nd7 {[%clk 0:02:41.3]} 15. Qe2 {[%clk
0:02:48.6]} 15... Rb8 {[%clk 0:02:39.5]} 16. a5 {[%clk 0:02:45.3]} 16... Qc7
{[%clk 0:02:38.2]} 17. f4 {[%clk 0:02:43.5]} 17... Rfe8 {[%clk 0:02:21.4]} 18.
Rae1 {[%clk 0:02:39]} 18... Nf8 {[%clk 0:02:21.2]} 19. e5 {[%clk 0:02:37.5]}
19... f5 {[%clk 0:02:15.2]} 20. Qd2 {[%clk 0:02:15.5]} 20... b5 {[%clk 0:01:51]}
21. axb6 {[%clk 0:01:53.5]} 21... Rxb6 {[%clk 0:01:46]} 22. Ba5 {[%clk
0:01:50.2]} 22... Qb7 {[%clk 0:01:42.7]} 23. Bxb6 {[%clk 0:01:49.7]} 23... Qxb6
{[%clk 0:01:43]} 24. b3 {[%clk 0:01:49.5]} 24... Nd7 {[%clk 0:01:39.6]} 25. Ra1
{[%clk 0:01:46.4]} 25... Ra8 {[%clk 0:01:36.5]} 26. Qa5 {[%clk 0:01:43.3]} 26...
Qb8 {[%clk 0:01:31.1]} 27. Qa4 {[%clk 0:01:20.5]} 27... Nxe5 {[%clk 0:01:30.6]}
28. fxe5 {[%clk 0:01:16.9]} 28... Qxe5 {[%clk 0:01:30.9]} 29. Rae1 {[%clk
0:01:09.3]} 29... Qg3 {[%clk 0:01:25.3]} 30. Rxe7 {[%clk 0:01:01.5]} 30... Bf6
{[%clk 0:01:17.5]} 31. Re6 {[%clk 0:00:51.7]} 31... Bd4+ {[%clk 0:01:16.9]} 32.
Kh1 {[%clk 0:00:49.9]} 32... f4 {[%clk 0:01:15.3]} 33. Re8+ {[%clk 0:00:45.6]}
33... Kg7 {[%clk 0:01:11.7]} 34. Qd7+ {[%clk 0:00:43.6]} 34... Kh6 {[%clk
0:01:10.7]} 35. Rxa8 {[%clk 0:00:36.1]} 35... f3 {[%clk 0:01:02.6]} 36. gxf3
{[%clk 0:00:19.2]} 36... Be5 {[%clk 0:01:00.3]} 37. f4 {[%clk 0:00:19.1]} 37...
Bxf4 {[%clk 0:00:51.6]} 38. Rxf4 {[%clk 0:00:18.9]} 38... Qxf4 {[%clk
0:00:52.5]} 39. Qg4 {[%clk 0:00:17.7]} 39... Qc1+ {[%clk 0:00:51.4]} 40. Qg1
{[%clk 0:00:16.7]} 40... Qc3 {[%clk 0:00:46.4]} 41. Rf8 {[%clk 0:00:12.9]} 41...
Kg7 {[%clk 0:00:39.3]} 42. Rf1 {[%clk 0:00:10.9]} 42... Qxh3+ {[%clk 0:00:38.2]}
43. Qh2 {[%clk 0:00:10.1]} 43... Qe3 {[%clk 0:00:34.8]} 44. d6 {[%clk
0:00:08.6]} 44... Qe4+ {[%clk 0:00:31.9]} 45. Kg1 {[%clk 0:00:07.8]} 45... Qd4+
{[%clk 0:00:31.6]} 46. Rf2 {[%clk 0:00:07.4]} 46... Qd1+ {[%clk 0:00:30.7]} 47.
Bf1 {[%clk 0:00:07]} 47... a5 {[%clk 0:00:27.7]} 48. Qe5+ {[%clk 0:00:05.2]}
48... Kh6 {[%clk 0:00:25.2]} 49. Rh2+ {[%clk 0:00:03.9]} 49... Qh5 {[%clk
0:00:25.1]} 50. Rxh5+ {[%clk 0:00:04]} 50... gxh5 {[%clk 0:00:25.9]} 51. Qf6#
{[%clk 0:00:04.4]} 1-0

[Event "*** SCC Grand Prix: Titled Tuesday Blitz"]
[Site "Chess.com"]
[Date "2020.07.07"]
[Round "9"]
[White "timator"]
[Black "AwareIdea"]
[Result "1/2-1/2"]
[WhiteElo "2619"]
[BlackElo "2481"]
[TimeControl "180+1"]
[EndTime "11:47:32 PDT"]
[Termination "Game drawn - insufficient material"]

1. d4 {[%clk 0:03:00.6]} 1... f5 {[%clk 0:02:58.2]} 2. Bg5 {[%clk 0:02:59]} 2...
g6 {[%clk 0:02:54.1]} 3. Nd2 {[%clk 0:02:57.5]} 3... Bg7 {[%clk 0:02:53.3]} 4.
Ngf3 {[%clk 0:02:57.5]} 4... Nf6 {[%clk 0:02:52.8]} 5. h4 {[%clk 0:02:55.7]}
5... h6 {[%clk 0:02:47.5]} 6. Bxf6 {[%clk 0:02:55.1]} 6... Bxf6 {[%clk
0:02:47.8]} 7. e4 {[%clk 0:02:56]} 7... d6 {[%clk 0:02:45.5]} 8. Bd3 {[%clk
0:02:55.6]} 8... e6 {[%clk 0:02:43.3]} 9. Qe2 {[%clk 0:02:35.2]} 9... O-O {[%clk
0:02:26.3]} 10. O-O-O {[%clk 0:02:34.1]} 10... Nc6 {[%clk 0:02:24.7]} 11. c3
{[%clk 0:02:33.8]} 11... e5 {[%clk 0:02:21.2]} 12. dxe5 {[%clk 0:02:27]} 12...
Nxe5 {[%clk 0:02:17.3]} 13. Nxe5 {[%clk 0:02:26.8]} 13... Bxe5 {[%clk
0:02:14.3]} 14. h5 {[%clk 0:02:26.9]} 14... g5 {[%clk 0:02:10]} 15. exf5 {[%clk
0:02:24.7]} 15... Bxf5 {[%clk 0:02:05.6]} 16. Ne4 {[%clk 0:02:21.2]} 16... Qe7
{[%clk 0:01:57.6]} 17. Kc2 {[%clk 0:02:20.3]} 17... Rae8 {[%clk 0:01:51.7]} 18.
Rhf1 {[%clk 0:02:04.9]} 18... Bg7 {[%clk 0:01:34.3]} 19. Rde1 {[%clk 0:01:58.9]}
19... d5 {[%clk 0:01:30.3]} 20. Ng3 {[%clk 0:01:58.2]} 20... Qc5 {[%clk
0:00:59.3]} 21. Qxe8 {[%clk 0:01:43.2]} 21... Bxd3+ {[%clk 0:00:57.2]} 22. Kxd3
{[%clk 0:01:44.1]} 22... Rxe8 {[%clk 0:00:57.2]} 23. Rxe8+ {[%clk 0:01:43.4]}
23... Kf7 {[%clk 0:00:57.4]} 24. Rfe1 {[%clk 0:01:14]} 24... Qb5+ {[%clk
0:00:50.9]} 25. Kc2 {[%clk 0:01:11.7]} 25... Qa4+ {[%clk 0:00:43]} 26. Kb1
{[%clk 0:01:10.7]} 26... Qxe8 {[%clk 0:00:41.8]} 27. Rxe8 {[%clk 0:01:11.1]}
27... Kxe8 {[%clk 0:00:42.7]} 28. Nf5 {[%clk 0:01:11]} 28... Kf7 {[%clk
0:00:38.8]} 29. Kc2 {[%clk 0:01:11.5]} 29... Bf8 {[%clk 0:00:38.5]} 30. Kd3
{[%clk 0:01:11.2]} 30... Kf6 {[%clk 0:00:36]} 31. g4 {[%clk 0:01:11.5]} 31...
Ke5 {[%clk 0:00:36.1]} 32. f3 {[%clk 0:01:07.4]} 32... Kf4 {[%clk 0:00:33.2]}
33. Ke2 {[%clk 0:01:06.5]} 33... a5 {[%clk 0:00:23.1]} 34. Nd4 {[%clk
0:01:01.3]} 34... Ke5 {[%clk 0:00:19.1]} 35. a4 {[%clk 0:00:54.7]} 35... c6
{[%clk 0:00:18.8]} 36. Nf5 {[%clk 0:00:44.3]} 36... Kf4 {[%clk 0:00:18.3]} 37.
Ne3 {[%clk 0:00:44.3]} 37... Bc5 {[%clk 0:00:16.6]} 38. Nf5 {[%clk 0:00:44.6]}
38... Bf8 {[%clk 0:00:16.3]} 39. b3 {[%clk 0:00:45]} 39... Ke5 {[%clk
0:00:15.2]} 40. c4 {[%clk 0:00:42.8]} 40... dxc4 {[%clk 0:00:11.8]} 41. bxc4
{[%clk 0:00:43.7]} 41... Kf4 {[%clk 0:00:11.1]} 42. Nd4 {[%clk 0:00:41.1]} 42...
Ke5 {[%clk 0:00:10.9]} 43. Kd3 {[%clk 0:00:40.7]} 43... Bc5 {[%clk 0:00:10.7]}
44. Nf5 {[%clk 0:00:40.7]} 44... Bf8 {[%clk 0:00:11]} 45. c5 {[%clk 0:00:35.6]}
45... Kf4 {[%clk 0:00:10.5]} 46. Kc4 {[%clk 0:00:32.3]} 46... Kxf3 {[%clk
0:00:09.1]} 47. Nd6 {[%clk 0:00:32.6]} 47... b6 {[%clk 0:00:03.5]} 48. Nf7
{[%clk 0:00:29.2]} 48... b5+ {[%clk 0:00:03.4]} 49. axb5 {[%clk 0:00:28.8]}
49... cxb5+ {[%clk 0:00:04.3]} 50. Kxb5 {[%clk 0:00:29.7]} 50... Bxc5 {[%clk
0:00:03]} 51. Nxh6 {[%clk 0:00:09.6]} 51... Bf8 {[%clk 0:00:02]} 52. Nf7 {[%clk
0:00:09.9]} 52... Kxg4 {[%clk 0:00:02.6]} 53. Kxa5 {[%clk 0:00:07.7]} 53... Kxh5
{[%clk 0:00:02.6]} 54. Nxg5 {[%clk 0:00:08.6]} 1/2-1/2

[Event "*** SCC Grand Prix: Titled Tuesday Blitz"]
[Site "Chess.com"]
[Date "2020.07.07"]
[Round "9"]
[White "VALPARAISO37"]
[Black "Supernotar"]
[Result "0-1"]
[WhiteElo "2315"]
[BlackElo "2777"]
[TimeControl "180+1"]
[EndTime "11:47:32 PDT"]
[Termination "Supernotar won by checkmate"]

1. d4 {[%clk 0:03:00.9]} 1... d5 {[%clk 0:02:59.3]} 2. c4 {[%clk 0:02:58.4]}
2... dxc4 {[%clk 0:02:59.5]} 3. e3 {[%clk 0:02:57.7]} 3... Nf6 {[%clk
0:02:59.7]} 4. Bxc4 {[%clk 0:02:57.6]} 4... e6 {[%clk 0:03:00]} 5. Nf3 {[%clk
0:02:56.2]} 5... a6 {[%clk 0:03:00.3]} 6. a4 {[%clk 0:02:46.3]} 6... c5 {[%clk
0:03:00.1]} 7. O-O {[%clk 0:02:45.6]} 7... Nc6 {[%clk 0:03:00.3]} 8. Qe2 {[%clk
0:02:45.9]} 8... cxd4 {[%clk 0:03:00.7]} 9. Rd1 {[%clk 0:02:46]} 9... Be7 {[%clk
0:03:00.9]} 10. exd4 {[%clk 0:02:45.6]} 10... O-O {[%clk 0:03:00.8]} 11. Nc3
{[%clk 0:02:45.6]} 11... Nb4 {[%clk 0:03:01]} 12. Ne5 {[%clk 0:02:41.9]} 12...
Bd7 {[%clk 0:03:01.1]} 13. Nxd7 {[%clk 0:02:38.6]} 13... Qxd7 {[%clk 0:02:58.2]}
14. Bg5 {[%clk 0:02:31.6]} 14... Rad8 {[%clk 0:02:35]} 15. Rd2 {[%clk
0:01:54.7]} 15... h6 {[%clk 0:02:29.1]} 16. Bh4 {[%clk 0:01:50.5]} 16... Nfd5
{[%clk 0:02:24.2]} 17. Bg3 {[%clk 0:01:48.1]} 17... Nxc3 {[%clk 0:02:16.6]} 18.
bxc3 {[%clk 0:01:45]} 18... Nd5 {[%clk 0:02:16.5]} 19. Rd3 {[%clk 0:01:18.8]}
19... Rc8 {[%clk 0:02:08.2]} 20. Rf3 {[%clk 0:01:18.2]} 20... Bf6 {[%clk
0:01:57.2]} 21. h4 {[%clk 0:01:01.9]} 21... Qc6 {[%clk 0:01:50.8]} 22. Bxd5
{[%clk 0:01:01.7]} 22... Qxd5 {[%clk 0:01:49.6]} 23. Rb1 {[%clk 0:00:52.7]}
23... Rfd8 {[%clk 0:01:39]} 24. Rxf6 {[%clk 0:00:26.1]} 24... gxf6 {[%clk
0:01:36.2]} 25. Qg4+ {[%clk 0:00:26.2]} 25... Kh7 {[%clk 0:01:30.2]} 26. a5
{[%clk 0:00:22.5]} 26... Rxc3 {[%clk 0:01:21.7]} 27. Qf4 {[%clk 0:00:22.2]}
27... Qxd4 {[%clk 0:01:03]} 28. Rxb7 {[%clk 0:00:21]} 28... Qxf4 {[%clk
0:00:50.1]} 29. Bxf4 {[%clk 0:00:21.3]} 29... Kg6 {[%clk 0:00:41.3]} 30. Be3
{[%clk 0:00:20.5]} 30... Rd1+ {[%clk 0:00:33.4]} 31. Kh2 {[%clk 0:00:20.3]}
31... Rc6 {[%clk 0:00:32.7]} 32. g4 {[%clk 0:00:19.4]} 32... Rd5 {[%clk
0:00:22.8]} 33. h5+ {[%clk 0:00:19.2]} 33... Kg7 {[%clk 0:00:22.7]} 34. Bb6
{[%clk 0:00:16.5]} 34... f5 {[%clk 0:00:20.9]} 35. Kg3 {[%clk 0:00:14.2]} 35...
fxg4 {[%clk 0:00:20.3]} 36. Kxg4 {[%clk 0:00:14.7]} 36... Rc4+ {[%clk
0:00:19.8]} 37. Kg3 {[%clk 0:00:14.5]} 37... Rxh5 {[%clk 0:00:18.3]} 38. Ra7
{[%clk 0:00:15.2]} 38... Rg5+ {[%clk 0:00:16.7]} 39. Kf3 {[%clk 0:00:15.1]}
39... Rf5+ {[%clk 0:00:15.9]} 40. Ke3 {[%clk 0:00:15]} 40... h5 {[%clk 0:00:13]}
41. Rxa6 {[%clk 0:00:14.9]} 41... h4 {[%clk 0:00:12.5]} 42. Ra8 {[%clk
0:00:14.5]} 42... h3 {[%clk 0:00:10.3]} 43. Rd8 {[%clk 0:00:14]} 43... Rc1
{[%clk 0:00:06.6]} 44. Bd4+ {[%clk 0:00:10.5]} 44... e5 {[%clk 0:00:06.8]} 45.
Bb2 {[%clk 0:00:10.2]} 45... h2 {[%clk 0:00:05.5]} 46. Bxc1 {[%clk 0:00:09.1]}
46... h1=Q {[%clk 0:00:05.8]} 47. Bb2 {[%clk 0:00:09.1]} 47... Qf3+ {[%clk
0:00:05.9]} 48. Kd2 {[%clk 0:00:08.5]} 48... Qxf2+ {[%clk 0:00:06.3]} 49. Kc1
{[%clk 0:00:09]} 49... Qf1+ {[%clk 0:00:05.9]} 50. Rd1 {[%clk 0:00:06.7]} 50...
Qc4+ {[%clk 0:00:05.5]} 51. Kb1 {[%clk 0:00:07.2]} 51... Rf2 {[%clk 0:00:05.4]}
52. Rg1+ {[%clk 0:00:06.7]} 52... Kf6 {[%clk 0:00:05.4]} 53. Rc1 {[%clk
0:00:05]} 53... Qd3+ {[%clk 0:00:04.8]} 54. Ka2 {[%clk 0:00:04.3]} 54... Qb5
{[%clk 0:00:04.9]} 55. Rb1 {[%clk 0:00:02.8]} 55... Qa4# {[%clk 0:00:04.8]} 0-1